[Event "Late-Titled-Tuesday-Blitz-June-18-2024"]
[Site "Chess.com"]
[Date "2024.06.18"]
[Round "9"]
[White "Bykov_Egor"]
[Black "KarlEmilElmer"]
[Result "1-0"]
[WhiteElo "2622"]
[BlackElo "2287"]
[TimeControl "180+1"]
[EndTime "15:46:08 PDT"]
[Termination "Bykov_Egor won by checkmate"]

1. e4 {[%clk 0:02:59.4]} 1... c5 {[%clk 0:02:54.7]} 2. c3 {[%clk 0:02:57.9]}
2... e6 {[%clk 0:02:50.1]} 3. d4 {[%clk 0:02:58.2]} 3... d5 {[%clk 0:02:50.4]}
4. e5 {[%clk 0:02:57]} 4... Nc6 {[%clk 0:02:48.7]} 5. Nf3 {[%clk 0:02:56.1]}
5... Bd7 {[%clk 0:02:46.5]} 6. Bd3 {[%clk 0:02:55.2]} 6... Qb6 {[%clk
0:02:43.4]} 7. a3 {[%clk 0:02:43.4]} 7... cxd4 {[%clk 0:02:42.7]} 8. O-O {[%clk
0:02:43.6]} 8... Nge7 {[%clk 0:02:18.5]} 9. Re1 {[%clk 0:02:43.4]} 9... Ng6
{[%clk 0:02:10.8]} 10. h4 {[%clk 0:02:42.3]} 10... Be7 {[%clk 0:01:26.6]} 11. g3
{[%clk 0:01:24.6]} 11... O-O-O {[%clk 0:01:23.3]} 12. b4 {[%clk 0:01:16.3]}
12... f6 {[%clk 0:00:59.3]} 13. cxd4 {[%clk 0:01:09.7]} 13... fxe5 {[%clk
0:00:51.1]} 14. dxe5 {[%clk 0:01:01.9]} 14... Rdf8 {[%clk 0:00:51]} 15. Be3
{[%clk 0:00:57.6]} 15... d4 {[%clk 0:00:45.3]} 16. Bc1 {[%clk 0:00:49.8]} 16...
Kb8 {[%clk 0:00:23.8]} 17. Nbd2 {[%clk 0:00:47.8]} 17... Qc7 {[%clk 0:00:20.3]}
18. Qe2 {[%clk 0:00:38.7]} 18... Qd8 {[%clk 0:00:09.3]} 19. h5 {[%clk
0:00:37.8]} 19... Nf4 {[%clk 0:00:05.3]} 20. gxf4 {[%clk 0:00:38.7]} 20... Rxf4
{[%clk 0:00:05.6]} 21. Ne4 {[%clk 0:00:36.5]} 21... Rg4+ {[%clk 0:00:05.8]} 22.
Ng3 {[%clk 0:00:37.2]} 22... Bh4 {[%clk 0:00:05.3]} 23. Kg2 {[%clk 0:00:23.6]}
23... Bxg3 {[%clk 0:00:05.3]} 24. fxg3 {[%clk 0:00:23.6]} 24... Rf8 {[%clk
0:00:03.7]} 25. Rf1 {[%clk 0:00:20.5]} 25... h6 {[%clk 0:00:03.2]} 26. Bd2
{[%clk 0:00:20.5]} 26... a6 {[%clk 0:00:01.5]} 27. Nh2 {[%clk 0:00:20.3]} 27...
Rxf1 {[%clk 0:00:01.1]} 28. Rxf1 {[%clk 0:00:19.9]} 28... Ne7 {[%clk 0:00:01.7]}
29. Qxg4 {[%clk 0:00:19.6]} 29... Bc6+ {[%clk 0:00:02.1]} 30. Be4 {[%clk
0:00:17.9]} 30... Nf5 {[%clk 0:00:01.9]} 31. Bxc6 {[%clk 0:00:17.5]} 31... bxc6
{[%clk 0:00:02.6]} 32. Rxf5 {[%clk 0:00:17.1]} 32... exf5 {[%clk 0:00:03.4]} 33.
Qxf5 {[%clk 0:00:18]} 33... d3 {[%clk 0:00:03.8]} 34. Qe4 {[%clk 0:00:18.2]}
34... Kb7 {[%clk 0:00:03.8]} 35. Nf3 {[%clk 0:00:18.4]} 35... Qe7 {[%clk
0:00:03.8]} 36. Nd4 {[%clk 0:00:18.7]} 36... Qd7 {[%clk 0:00:03.4]} 37. Qxc6+
{[%clk 0:00:18.6]} 37... Qxc6+ {[%clk 0:00:04.3]} 38. Nxc6 {[%clk 0:00:19.3]}
38... Kxc6 {[%clk 0:00:05.1]} 39. Kf3 {[%clk 0:00:19.9]} 39... Kd5 {[%clk
0:00:05.6]} 40. Ke3 {[%clk 0:00:20.5]} 40... Kxe5 {[%clk 0:00:05.9]} 41. Kxd3
{[%clk 0:00:21.4]} 41... Kf5 {[%clk 0:00:06.2]} 42. a4 {[%clk 0:00:18.8]} 42...
Kg4 {[%clk 0:00:06.8]} 43. Be1 {[%clk 0:00:19.2]} 43... Kxh5 {[%clk 0:00:07.2]}
44. b5 {[%clk 0:00:20]} 44... axb5 {[%clk 0:00:07.3]} 45. axb5 {[%clk
0:00:20.9]} 45... Kg4 {[%clk 0:00:08]} 46. b6 {[%clk 0:00:21.8]} 46... g5 {[%clk
0:00:07.9]} 47. b7 {[%clk 0:00:22.7]} 47... h5 {[%clk 0:00:08.3]} 48. b8=Q
{[%clk 0:00:23.6]} 48... h4 {[%clk 0:00:09.2]} 49. Qc8+ {[%clk 0:00:24]} 49...
Kf3 {[%clk 0:00:09.1]} 50. Qf5+ {[%clk 0:00:24.1]} 50... Kg2 {[%clk 0:00:09.8]}
51. gxh4 {[%clk 0:00:24.1]} 51... gxh4 {[%clk 0:00:09.8]} 52. Bxh4 {[%clk
0:00:24.7]} 52... Kh2 {[%clk 0:00:09.5]} 53. Bd8 {[%clk 0:00:25.2]} 53... Kg2
{[%clk 0:00:09.7]} 54. Ke2 {[%clk 0:00:25.8]} 54... Kh2 {[%clk 0:00:10.2]} 55.
Qg5 {[%clk 0:00:25.9]} 55... Kh1 {[%clk 0:00:10.8]} 56. Kf2 {[%clk 0:00:26.8]}
56... Kh2 {[%clk 0:00:11.3]} 57. Qg2# {[%clk 0:00:27.6]} 1-0

[Event "Late-Titled-Tuesday-Blitz-June-18-2024"]
[Site "Chess.com"]
[Date "2024.06.18"]
[Round "9"]
[White "Byniolus"]
[Black "SpeedofLight0"]
[Result "0-1"]
[WhiteElo "2762"]
[BlackElo "3037"]
[TimeControl "180+1"]
[EndTime "15:46:09 PDT"]
[Termination "SpeedofLight0 won on time"]

1. d4 {[%clk 0:03:00.9]} 1... g6 {[%clk 0:02:57.5]} 2. Nf3 {[%clk 0:03:01]} 2...
Bg7 {[%clk 0:02:57.4]} 3. Bf4 {[%clk 0:03:01]} 3... d6 {[%clk 0:02:56.6]} 4. e3
{[%clk 0:03:00.8]} 4... Nd7 {[%clk 0:02:56.7]} 5. h3 {[%clk 0:03:00.8]} 5... e5
{[%clk 0:02:56.6]} 6. Bh2 {[%clk 0:03:01.1]} 6... Nh6 {[%clk 0:02:57.2]} 7. Be2
{[%clk 0:03:00.9]} 7... O-O {[%clk 0:02:57.1]} 8. O-O {[%clk 0:03:01.5]} 8...
Kh8 {[%clk 0:02:57.1]} 9. Re1 {[%clk 0:02:55.9]} 9... f5 {[%clk 0:02:55.2]} 10.
c4 {[%clk 0:02:55.9]} 10... g5 {[%clk 0:02:51]} 11. dxe5 {[%clk 0:02:52.1]}
11... dxe5 {[%clk 0:02:51.9]} 12. Nc3 {[%clk 0:02:50.2]} 12... c6 {[%clk
0:02:42.7]} 13. Qd6 {[%clk 0:02:32.5]} 13... Nf7 {[%clk 0:02:41.5]} 14. Qa3
{[%clk 0:02:18]} 14... h5 {[%clk 0:02:40.1]} 15. Rad1 {[%clk 0:02:11.4]} 15...
g4 {[%clk 0:02:34.8]} 16. hxg4 {[%clk 0:02:09.2]} 16... hxg4 {[%clk 0:02:35.7]}
17. Nd2 {[%clk 0:02:05.7]} 17... Qh4 {[%clk 0:02:34.9]} 18. Bg3 {[%clk
0:01:51.4]} 18... Qh6 {[%clk 0:02:34.6]} 19. f4 {[%clk 0:01:44.2]} 19... gxf3
{[%clk 0:02:21.1]} 20. Nxf3 {[%clk 0:01:38.9]} 20... Nf6 {[%clk 0:02:10]} 21.
Bf1 {[%clk 0:01:19.2]} 21... Ng4 {[%clk 0:02:08.3]} 22. Qe7 {[%clk 0:01:12]}
22... Bf6 {[%clk 0:01:59.8]} 23. Qc7 {[%clk 0:01:03.1]} 23... Kg7 {[%clk
0:01:50.8]} 24. Rd6 {[%clk 0:00:25.3]} 24... Re8 {[%clk 0:00:59]} 25. Nh4 {[%clk
0:00:19.3]} 25... Qh5 {[%clk 0:00:45.5]} 26. Rxf6 {[%clk 0:00:13.7]} 26... Nxf6
{[%clk 0:00:46.1]} 27. Nf3 {[%clk 0:00:11.9]} 27... Ng4 {[%clk 0:00:38.9]} 28.
Rd1 {[%clk 0:00:06.7]} 28... Qh6 {[%clk 0:00:32.3]} 29. Rd3 {[%clk 0:00:01.7]}
29... e4 {[%clk 0:00:29.3]} 30. Bf4 {[%clk 0:00:01.9]} 30... Qh5 {[%clk
0:00:23.9]} 31. Ng5 {[%clk 0:00:02]} 31... exd3 {[%clk 0:00:19.1]} 32. Bxd3
{[%clk 0:00:02.9]} 32... Be6 {[%clk 0:00:16.3]} 33. Na4 {[%clk 0:00:02.5]} 33...
b6 {[%clk 0:00:11.2]} 34. c5 {[%clk 0:00:02.1]} 34... Rad8 {[%clk 0:00:11.1]}
35. Be2 {[%clk 0:00:01.6]} 35... b5 {[%clk 0:00:05.6]} 36. Nc3 {[%clk
0:00:01.5]} 36... Qg6 {[%clk 0:00:05.5]} 37. Nxf7 {[%clk 0:00:01.4]} 37... Qxf7
{[%clk 0:00:05.7]} 38. Qxc6 {[%clk 0:00:02.3]} 38... Nf6 {[%clk 0:00:03.9]} 39.
Be5 {[%clk 0:00:02.3]} 39... Kg6 {[%clk 0:00:04.4]} 40. Qf3 {[%clk 0:00:02.1]}
40... Ng4 {[%clk 0:00:05]} 41. Bd4 {[%clk 0:00:02.7]} 41... Bc4 {[%clk
0:00:04.7]} 42. Bd1 {[%clk 0:00:02.6]} 42... Rxd4 {[%clk 0:00:04.4]} 43. exd4
{[%clk 0:00:03.5]} 43... Re1+ {[%clk 0:00:04.3]} 0-1

[Event "Late-Titled-Tuesday-Blitz-June-18-2024"]
[Site "Chess.com"]
[Date "2024.06.18"]
[Round "9"]
[White "GoltsevDmitry2000"]
[Black "Fandorine"]
[Result "0-1"]
[WhiteElo "2729"]
[BlackElo "2926"]
[TimeControl "180+1"]
[EndTime "15:46:10 PDT"]
[Termination "Fandorine won by checkmate"]

1. e4 {[%clk 0:03:00.9]} 1... c5 {[%clk 0:02:58.4]} 2. Nf3 {[%clk 0:03:01.1]}
2... d6 {[%clk 0:02:58.6]} 3. d4 {[%clk 0:03:01.6]} 3... cxd4 {[%clk 0:02:59.2]}
4. Nxd4 {[%clk 0:03:02.5]} 4... Nf6 {[%clk 0:02:59.8]} 5. Nc3 {[%clk 0:03:02.8]}
5... a6 {[%clk 0:03:00]} 6. Be2 {[%clk 0:03:03.1]} 6... e6 {[%clk 0:02:59.9]} 7.
O-O {[%clk 0:03:02.6]} 7... Be7 {[%clk 0:03:00.4]} 8. Bg5 {[%clk 0:03:00.2]}
8... O-O {[%clk 0:03:00]} 9. Qd2 {[%clk 0:03:00.4]} 9... Qc7 {[%clk 0:02:54.2]}
10. Rad1 {[%clk 0:02:59]} 10... b5 {[%clk 0:02:53.7]} 11. a3 {[%clk 0:02:58.7]}
11... Bb7 {[%clk 0:02:53.8]} 12. Nb3 {[%clk 0:02:52.9]} 12... Nbd7 {[%clk
0:02:52.3]} 13. f3 {[%clk 0:02:51.1]} 13... Rac8 {[%clk 0:02:51.8]} 14. Be3
{[%clk 0:02:50.8]} 14... Rfd8 {[%clk 0:02:51.3]} 15. Qe1 {[%clk 0:02:40.9]}
15... Nb6 {[%clk 0:02:28.6]} 16. Qf2 {[%clk 0:02:38]} 16... Nc4 {[%clk
0:02:28.5]} 17. Bxc4 {[%clk 0:02:38.1]} 17... bxc4 {[%clk 0:02:28.9]} 18. Bb6
{[%clk 0:02:35.5]} 18... Qb8 {[%clk 0:02:24.6]} 19. Bxd8 {[%clk 0:02:35]} 19...
Bxd8 {[%clk 0:02:25.5]} 20. Nd4 {[%clk 0:02:29.7]} 20... Bb6 {[%clk 0:02:23.8]}
21. Kh1 {[%clk 0:02:13.8]} 21... e5 {[%clk 0:02:20.2]} 22. Nce2 {[%clk
0:02:13.6]} 22... exd4 {[%clk 0:02:17.3]} 23. Nxd4 {[%clk 0:02:14.5]} 23... d5
{[%clk 0:02:17.6]} 24. exd5 {[%clk 0:02:12.7]} 24... Bxd5 {[%clk 0:02:14.4]} 25.
c3 {[%clk 0:02:11.9]} 25... h6 {[%clk 0:02:12.5]} 26. Rfe1 {[%clk 0:02:10.2]}
26... Re8 {[%clk 0:02:04.8]} 27. Qh4 {[%clk 0:02:08.2]} 27... Rxe1+ {[%clk
0:02:01.7]} 28. Rxe1 {[%clk 0:02:09.1]} 28... Bxd4 {[%clk 0:01:56.1]} 29. Qxd4
{[%clk 0:02:09.3]} 29... Qxb2 {[%clk 0:01:56.7]} 30. a4 {[%clk 0:02:03.4]} 30...
Qa3 {[%clk 0:01:47.4]} 31. Rb1 {[%clk 0:01:41]} 31... Qxa4 {[%clk 0:01:36.9]}
32. Qe5 {[%clk 0:01:39.9]} 32... Be6 {[%clk 0:01:23.9]} 33. h4 {[%clk
0:01:25.7]} 33... Qc2 {[%clk 0:01:23.1]} 34. Ra1 {[%clk 0:01:21.6]} 34... Qf2
{[%clk 0:01:19]} 35. Rxa6 {[%clk 0:01:11.3]} 35... Qxh4+ {[%clk 0:01:17.3]} 36.
Kg1 {[%clk 0:01:11.7]} 36... Qg5 {[%clk 0:01:11.6]} 37. Qd4 {[%clk 0:01:04.4]}
37... Kh7 {[%clk 0:01:08.7]} 38. Ra8 {[%clk 0:00:53.5]} 38... Qd5 {[%clk
0:01:05.9]} 39. Qa7 {[%clk 0:00:51.5]} 39... Qd2 {[%clk 0:01:01.2]} 40. Qa5
{[%clk 0:00:38.5]} 40... Qe1+ {[%clk 0:00:53.6]} 41. Kh2 {[%clk 0:00:38.1]}
41... Qh4+ {[%clk 0:00:54.2]} 42. Kg1 {[%clk 0:00:38.2]} 42... Nd5 {[%clk
0:00:54.7]} 43. Rd8 {[%clk 0:00:27.9]} 43... Nf4 {[%clk 0:00:39.7]} 44. Qa8
{[%clk 0:00:17.1]} 44... Qe1+ {[%clk 0:00:38.8]} 45. Kh2 {[%clk 0:00:16.9]}
45... Qe2 {[%clk 0:00:34.8]} 46. Kg3 {[%clk 0:00:04.4]} 46... Qe5 {[%clk
0:00:29.9]} 47. Kf2 {[%clk 0:00:01.8]} 47... Bd5 {[%clk 0:00:20.1]} 48. Qb8
{[%clk 0:00:01.8]} 48... Qe2+ {[%clk 0:00:18.5]} 49. Kg3 {[%clk 0:00:02.2]}
49... Qxg2+ {[%clk 0:00:18.1]} 50. Kxf4 {[%clk 0:00:01.8]} 50... Qg5# {[%clk
0:00:18.7]} 0-1

[Event "Late-Titled-Tuesday-Blitz-June-18-2024"]
[Site "Chess.com"]
[Date "2024.06.18"]
[Round "9"]
[White "Arteler"]
[Black "cthulhuuu"]
[Result "0-1"]
[WhiteElo "2223"]
[BlackElo "2395"]
[TimeControl "180+1"]
[EndTime "15:46:10 PDT"]
[Termination "cthulhuuu won by checkmate"]

1. Nf3 {[%clk 0:03:00.9]} 1... Nf6 {[%clk 0:02:58.3]} 2. d4 {[%clk 0:02:59.5]}
2... g6 {[%clk 0:02:58.7]} 3. c4 {[%clk 0:02:59.8]} 3... Bg7 {[%clk 0:02:58.8]}
4. g3 {[%clk 0:03:00.2]} 4... O-O {[%clk 0:02:59.4]} 5. Bg2 {[%clk 0:03:00.5]}
5... d6 {[%clk 0:02:59.9]} 6. O-O {[%clk 0:03:00.8]} 6... c5 {[%clk 0:03:00.6]}
7. dxc5 {[%clk 0:02:59.8]} 7... dxc5 {[%clk 0:03:00.4]} 8. Nc3 {[%clk 0:03:00]}
8... Nc6 {[%clk 0:03:00.5]} 9. Qc2 {[%clk 0:02:59.2]} 9... Be6 {[%clk
0:02:57.8]} 10. Rd1 {[%clk 0:02:57.4]} 10... Qa5 {[%clk 0:02:56.9]} 11. b3
{[%clk 0:02:36.6]} 11... Bf5 {[%clk 0:02:51.5]} 12. Qd2 {[%clk 0:02:11.8]} 12...
Ne4 {[%clk 0:02:26.4]} 13. Nxe4 {[%clk 0:02:06.8]} 13... Qxd2 {[%clk 0:02:01.5]}
14. Bxd2 {[%clk 0:01:59.2]} 14... Bxe4 {[%clk 0:02:00.4]} 15. Rac1 {[%clk
0:01:56.2]} 15... Bb2 {[%clk 0:01:58]} 16. Ng5 {[%clk 0:01:39.1]} 16... Bxg2
{[%clk 0:01:54.1]} 17. Rc2 {[%clk 0:01:32.5]} 17... Bg7 {[%clk 0:01:33.3]} 18.
Kxg2 {[%clk 0:01:31.1]} 18... Nd4 {[%clk 0:01:33.8]} 19. Rcc1 {[%clk 0:01:25.5]}
19... Nxe2 {[%clk 0:01:34]} 20. Rb1 {[%clk 0:01:21.5]} 20... Rad8 {[%clk
0:01:27.8]} 21. Be3 {[%clk 0:01:18.6]} 21... Nc3 {[%clk 0:01:21.7]} 22. Rxd8
{[%clk 0:01:17.7]} 22... Rxd8 {[%clk 0:01:22.6]} 23. Rc1 {[%clk 0:01:17]} 23...
Nxa2 {[%clk 0:01:22]} 24. Rc2 {[%clk 0:01:13]} 24... Nb4 {[%clk 0:01:21.8]} 25.
Re2 {[%clk 0:01:09.3]} 25... b6 {[%clk 0:01:19]} 26. Bd2 {[%clk 0:01:04.5]}
26... e6 {[%clk 0:01:10.6]} 27. Bxb4 {[%clk 0:00:54.1]} 27... cxb4 {[%clk
0:01:11.5]} 28. Ra2 {[%clk 0:00:41.6]} 28... a5 {[%clk 0:01:10.9]} 29. Nf3
{[%clk 0:00:32.3]} 29... Rd3 {[%clk 0:01:01.8]} 30. Nd2 {[%clk 0:00:26.2]} 30...
Bh6 {[%clk 0:00:39.4]} 31. Ne4 {[%clk 0:00:20.7]} 31... Rxb3 {[%clk 0:00:39.4]}
32. c5 {[%clk 0:00:20.2]} 32... bxc5 {[%clk 0:00:37.3]} 33. Nxc5 {[%clk
0:00:19.8]} 33... Ra3 {[%clk 0:00:36.4]} 34. Rc2 {[%clk 0:00:12]} 34... Rc3
{[%clk 0:00:35.4]} 35. Rxc3 {[%clk 0:00:08]} 35... bxc3 {[%clk 0:00:36.3]} 36.
f4 {[%clk 0:00:03.8]} 36... c2 {[%clk 0:00:36.1]} 37. Nb3 {[%clk 0:00:01]} 37...
a4 {[%clk 0:00:35.8]} 38. Nc1 {[%clk 0:00:01.6]} 38... e5 {[%clk 0:00:36.1]} 39.
Kf2 {[%clk 0:00:01.8]} 39... exf4 {[%clk 0:00:35.6]} 40. gxf4 {[%clk 0:00:02.7]}
40... Bxf4 {[%clk 0:00:36.2]} 41. Nd3 {[%clk 0:00:03.4]} 41... c1=Q {[%clk
0:00:36.5]} 42. Nxc1 {[%clk 0:00:04.3]} 42... Bxc1 {[%clk 0:00:37.3]} 43. Ke2
{[%clk 0:00:05.1]} 43... a3 {[%clk 0:00:35]} 44. Kd3 {[%clk 0:00:06]} 44... a2
{[%clk 0:00:35.3]} 45. Kc2 {[%clk 0:00:06.9]} 45... a1=Q {[%clk 0:00:34.8]} 46.
Kd3 {[%clk 0:00:06.3]} 46... Qe5 {[%clk 0:00:32.1]} 47. Kc2 {[%clk 0:00:05.9]}
47... Be3 {[%clk 0:00:30.9]} 48. Kb3 {[%clk 0:00:06.8]} 48... Qc5 {[%clk
0:00:30.1]} 49. Kb2 {[%clk 0:00:06.4]} 49... Bd4+ {[%clk 0:00:30.2]} 50. Ka2
{[%clk 0:00:07.3]} 50... Qb4 {[%clk 0:00:29.8]} 51. h4 {[%clk 0:00:04.6]} 51...
Qb2# {[%clk 0:00:30.7]} 0-1

[Event "Late-Titled-Tuesday-Blitz-June-18-2024"]
[Site "Chess.com"]
[Date "2024.06.18"]
[Round "9"]
[White "Laico"]
[Black "dosto07"]
[Result "0-1"]
[WhiteElo "2444"]
[BlackElo "2603"]
[TimeControl "180+1"]
[EndTime "15:46:11 PDT"]
[Termination "dosto07 won on time"]

1. e4 {[%clk 0:02:56.3]} 1... e5 {[%clk 0:02:59]} 2. Nc3 {[%clk 0:02:56.3]} 2...
Nf6 {[%clk 0:02:58.2]} 3. f4 {[%clk 0:02:51.7]} 3... d5 {[%clk 0:02:49.9]} 4.
fxe5 {[%clk 0:02:51.9]} 4... Nxe4 {[%clk 0:02:49.9]} 5. Qf3 {[%clk 0:02:52.6]}
5... Nc6 {[%clk 0:02:49.1]} 6. Bb5 {[%clk 0:02:51.8]} 6... Nxc3 {[%clk
0:02:41.4]} 7. dxc3 {[%clk 0:02:52.7]} 7... Be7 {[%clk 0:02:40.7]} 8. Bf4 {[%clk
0:02:50]} 8... O-O {[%clk 0:02:40.5]} 9. O-O-O {[%clk 0:02:49]} 9... Be6 {[%clk
0:02:40.4]} 10. h4 {[%clk 0:02:49.5]} 10... Qc8 {[%clk 0:02:38]} 11. Qg3 {[%clk
0:02:47.6]} 11... Kh8 {[%clk 0:02:18.9]} 12. Nf3 {[%clk 0:02:47.2]} 12... Rd8
{[%clk 0:02:03.2]} 13. Ng5 {[%clk 0:02:41.6]} 13... h6 {[%clk 0:01:58.2]} 14.
Nxe6 {[%clk 0:02:41.8]} 14... Qxe6 {[%clk 0:01:58.1]} 15. Be2 {[%clk 0:02:41.9]}
15... Bc5 {[%clk 0:01:36.5]} 16. Bg4 {[%clk 0:02:37.5]} 16... Qg6 {[%clk
0:01:28.5]} 17. h5 {[%clk 0:02:28.7]} 17... Qh7 {[%clk 0:01:27.5]} 18. e6 {[%clk
0:02:17.9]} 18... f5 {[%clk 0:01:19.4]} 19. Bf3 {[%clk 0:02:13.6]} 19... Bd6
{[%clk 0:01:10.4]} 20. Rxd5 {[%clk 0:02:06.8]} 20... Ne7 {[%clk 0:01:08.6]} 21.
Rd4 {[%clk 0:01:44.4]} 21... Qg8 {[%clk 0:01:01.4]} 22. Bxd6 {[%clk 0:01:41.9]}
22... cxd6 {[%clk 0:01:01.5]} 23. Rxd6 {[%clk 0:01:42.6]} 23... Qf8 {[%clk
0:00:53.1]} 24. Rhd1 {[%clk 0:01:38.4]} 24... Rxd6 {[%clk 0:00:52.8]} 25. Qxd6
{[%clk 0:01:38.4]} 25... Re8 {[%clk 0:00:52.3]} 26. Bxb7 {[%clk 0:01:35.5]}
26... Qf6 {[%clk 0:00:52.3]} 27. c4 {[%clk 0:01:14.3]} 27... f4 {[%clk
0:00:52.1]} 28. c5 {[%clk 0:01:11.9]} 28... Qg5 {[%clk 0:00:48.2]} 29. Bf3
{[%clk 0:01:08.8]} 29... Nf5 {[%clk 0:00:44.9]} 30. Qd7 {[%clk 0:01:04.6]} 30...
Re7 {[%clk 0:00:45.2]} 31. Qc8+ {[%clk 0:01:04.5]} 31... Kh7 {[%clk 0:00:42.5]}
32. Be4 {[%clk 0:01:04.6]} 32... f3+ {[%clk 0:00:41.5]} 33. Kb1 {[%clk 0:01:00]}
33... fxg2 {[%clk 0:00:40]} 34. Rg1 {[%clk 0:01:00.5]} 34... Qf4 {[%clk
0:00:34.1]} 35. Bd3 {[%clk 0:00:31.4]} 35... Qf2 {[%clk 0:00:33.8]} 36. Bxf5+
{[%clk 0:00:27.2]} 36... Qxf5 {[%clk 0:00:33.5]} 37. Qd8 {[%clk 0:00:12.2]}
37... Rxe6 {[%clk 0:00:20.5]} 38. Qd3 {[%clk 0:00:08.1]} 38... Qxd3 {[%clk
0:00:15]} 39. cxd3 {[%clk 0:00:09]} 39... Re2 {[%clk 0:00:13.4]} 40. c6 {[%clk
0:00:03]} 40... Rf2 {[%clk 0:00:13.9]} 41. c7 {[%clk 0:00:02.9]} 41... Rf1+
{[%clk 0:00:13.1]} 42. Kc2 {[%clk 0:00:03.4]} 42... Rxg1 {[%clk 0:00:13.3]} 43.
c8=Q {[%clk 0:00:03.6]} 43... Rf1 {[%clk 0:00:11.6]} 44. Qd7 {[%clk 0:00:01]}
44... g1=Q {[%clk 0:00:09.4]} 45. Kb3 {[%clk 0:00:01.9]} 45... Qg5 {[%clk
0:00:07.9]} 0-1

[Event "Late-Titled-Tuesday-Blitz-June-18-2024"]
[Site "Chess.com"]
[Date "2024.06.18"]
[Round "9"]
[White "Cxrjs"]
[Black "PapaieDudu"]
[Result "1-0"]
[WhiteElo "2523"]
[BlackElo "2380"]
[TimeControl "180+1"]
[EndTime "15:46:11 PDT"]
[Termination "Cxrjs won by checkmate"]

1. e4 {[%clk 0:03:00.9]} 1... c5 {[%clk 0:03:00.3]} 2. Nf3 {[%clk 0:02:59.8]}
2... d6 {[%clk 0:03:00.8]} 3. d4 {[%clk 0:03:00.2]} 3... cxd4 {[%clk 0:03:01.7]}
4. Nxd4 {[%clk 0:03:00.7]} 4... Nf6 {[%clk 0:03:02.4]} 5. Nc3 {[%clk 0:03:01.3]}
5... a6 {[%clk 0:03:03.3]} 6. Bg5 {[%clk 0:03:01]} 6... e6 {[%clk 0:03:04.2]} 7.
f4 {[%clk 0:03:01]} 7... Nbd7 {[%clk 0:03:04.9]} 8. Qf3 {[%clk 0:03:01.2]} 8...
Qc7 {[%clk 0:03:05.7]} 9. O-O-O {[%clk 0:03:00.8]} 9... b5 {[%clk 0:03:06.4]}
10. e5 {[%clk 0:02:51.6]} 10... Bb7 {[%clk 0:03:05.2]} 11. Qg3 {[%clk
0:02:49.9]} 11... dxe5 {[%clk 0:03:04.9]} 12. Bxb5 {[%clk 0:02:20.5]} 12... axb5
{[%clk 0:03:03.2]} 13. Ndxb5 {[%clk 0:02:20.4]} 13... Qb8 {[%clk 0:02:46.7]} 14.
fxe5 {[%clk 0:02:17.5]} 14... Nxe5 {[%clk 0:02:42.6]} 15. Rhe1 {[%clk
0:02:07.7]} 15... Be7 {[%clk 0:02:22.9]} 16. Qxe5 {[%clk 0:01:59]} 16... O-O
{[%clk 0:02:21.6]} 17. Qxb8 {[%clk 0:01:38.3]} 17... Rfxb8 {[%clk 0:02:21.3]}
18. Re2 {[%clk 0:01:24.5]} 18... h6 {[%clk 0:02:17.9]} 19. Bf4 {[%clk
0:01:22.1]} 19... Rd8 {[%clk 0:02:13.5]} 20. Nd6 {[%clk 0:01:17.2]} 20... Bd5
{[%clk 0:02:06.5]} 21. Nxd5 {[%clk 0:00:58.8]} 21... Nxd5 {[%clk 0:02:06.7]} 22.
Rxd5 {[%clk 0:00:57.1]} 22... exd5 {[%clk 0:02:03.7]} 23. Rxe7 {[%clk
0:00:57.7]} 23... Rxa2 {[%clk 0:01:56.6]} 24. Bg3 {[%clk 0:00:37.4]} 24... h5
{[%clk 0:01:31]} 25. Nxf7 {[%clk 0:00:23.5]} 25... Rf8 {[%clk 0:01:20.4]} 26.
Ng5 {[%clk 0:00:23.5]} 26... Rf1+ {[%clk 0:01:06.3]} 27. Kd2 {[%clk 0:00:23.5]}
27... Rxb2 {[%clk 0:01:06.9]} 28. Ne6 {[%clk 0:00:19.6]} 28... Rf6 {[%clk
0:00:18.7]} 29. Rxg7+ {[%clk 0:00:18.2]} 29... Kh8 {[%clk 0:00:17.9]} 30. Re7
{[%clk 0:00:18.8]} 30... Kg8 {[%clk 0:00:15.1]} 31. Be5 {[%clk 0:00:10.7]} 31...
Rf2+ {[%clk 0:00:14.5]} 32. Ke3 {[%clk 0:00:11.2]} 32... Rf7 {[%clk 0:00:11.5]}
33. Re8+ {[%clk 0:00:10.1]} 33... Rf8 {[%clk 0:00:11]} 34. Rxf8+ {[%clk
0:00:10.3]} 34... Kh7 {[%clk 0:00:11.5]} 35. Rh8+ {[%clk 0:00:09.5]} 35... Kg6
{[%clk 0:00:12.1]} 36. Nf4+ {[%clk 0:00:08.8]} 36... Kf5 {[%clk 0:00:12.2]} 37.
Bxb2 {[%clk 0:00:09.2]} 37... h4 {[%clk 0:00:12.1]} 38. Rh5+ {[%clk 0:00:09.1]}
38... Kg4 {[%clk 0:00:12.5]} 39. h3+ {[%clk 0:00:06]} 39... Kg3 {[%clk
0:00:12.7]} 40. Nxd5 {[%clk 0:00:05.4]} 40... Kh2 {[%clk 0:00:10.1]} 41. Rxh4
{[%clk 0:00:05.4]} 41... Kg3 {[%clk 0:00:10.4]} 42. Rg4+ {[%clk 0:00:05.4]}
42... Kh2 {[%clk 0:00:10.7]} 43. Be5+ {[%clk 0:00:05.3]} 43... Kg1 {[%clk
0:00:10.2]} 44. Kf3 {[%clk 0:00:05.5]} 44... Kf1 {[%clk 0:00:10.2]} 45. Re4
{[%clk 0:00:05.5]} 45... Kg1 {[%clk 0:00:09.9]} 46. Re1# {[%clk 0:00:06.2]} 1-0